{"text_format":"3","workbook":"xlsx","n_sheets":1,"sheets":["Протокол ШЭ ВОШ по предмету"],"not_rendered":{"external_links":2,"defined_names":1},"read":"whole","date_system":"1900"}

{"sheet":"Протокол ШЭ ВОШ по предмету","index":0,"n_rows":33,"n_cols":15,"rows_kept":33}
["№","Фамилия","Имя","Отчество","Дата рождения","Пол","Участник с ОВЗ (да/нет)","Класс обучения","Класс участия","Балл","Максимальный балл","Статус","Призёр муниципального этапа прошлого года","ФИО учителя","Место работы учителя"]
[1,"Габдрахманеов ","Ранель","Русланович","2011-09-13","м","нет",5,5,13,25,"участник","нет","Аглиева Айгуль Магфуровна","Муниципальное бюджетное общеобразовательное учреждение \"СОШ №27\"  НМР РТ"]
[2,"Орлов ","Данил  ","Алексеевич","2011-10-03","м","нет",5,5,12,25,"участник","нет",{"$f":"$N$2","v":"Аглиева Айгуль Магфуровна"},"Муниципальное бюджетное общеобразовательное учреждение \"СОШ №27\"  НМР РТ"]
[3,"Антонов ","Артур","Евгеньевич","2011-10-19","м","нет",5,5,16,25,"участник","нет","Аглиева Айгуль Магфуровна","Муниципальное бюджетное общеобразовательное учреждение \"СОШ №27\"  НМР РТ"]
[4,{"$f":"B37","v":"Николаев"},{"$f":"C37","v":"Марк"},{"$f":"D37","v":"Александрович"},{"$f":"[2]шаблон!$M$469","v":"2011-07-10"},{"$f":"F37","v":"м"},{"$f":"G37","v":"нет"},{"$f":"H37","v":5},{"$f":"I37","v":5},{"$f":"J37","v":17},{"$f":"K37","v":25},{"$f":"L37","v":"Призёр"},"нет",{"$f":"$N$38","v":"Лихманова Надежда Владимировна"},{"$f":"$O$4","v":"Муниципальное бюджетное общеобразовательное учреждение \"СОШ №27\"  НМР РТ"}]
[5,"Хазиева",{"$f":"C38","v":"Зарина"},"Айратовна",{"$f":"[2]шаблон!$M$475","v":"2011-04-03"},{"$f":"F38","v":"ж"},{"$f":"G38","v":"нет"},{"$f":"H38","v":5},{"$f":"I38","v":5},{"$f":"J38","v":11},{"$f":"K38","v":25},{"$f":"L38","v":"Участник"},"нет",{"$f":"$N$38","v":"Лихманова Надежда Владимировна"},{"$f":"$O$4","v":"Муниципальное бюджетное общеобразовательное учреждение \"СОШ №27\"  НМР РТ"}]
[6,{"$f":"B39","v":"Хузиева"},{"$f":"C39","v":"Ралина"},{"$f":"D39","v":"Маратовна"},{"$f":"[2]шаблон!$M$503","v":"2011-02-12"},{"$f":"F39","v":"ж"},{"$f":"G39","v":"нет"},{"$f":"H39","v":5},{"$f":"I39","v":5},{"$f":"J39","v":13},{"$f":"K39","v":25},{"$f":"L39","v":"Участник"},"нет",{"$f":"$N$38","v":"Лихманова Надежда Владимировна"},{"$f":"$O$4","v":"Муниципальное бюджетное общеобразовательное учреждение \"СОШ №27\"  НМР РТ"}]
[7,"Бикулов","Степан","Александрович","2010-03-05","м","нет",6,6,29,55,"Призёр","нет","Лихманова Надежда Владимировна","Муниципальное бюджетное общеобразовательное учреждение \"СОШ №27\"  НМР РТ"]
[8,"Слепов","Тимур","Сергеевич","2010-05-23","м","нет",6,6,23,55,"Участник","нет","Лихманова Надежда Владимировна","Муниципальное бюджетное общеобразовательное учреждение \"СОШ №27\"  НМР РТ"]
[9,"Былинкина","Анастасия","Евгеньевна",{"$f":"[2]шаблон!$M$559","v":"2010-08-27"},"ж","нет",6,6,21,55,"участник","нет",{"$f":"$N$9","v":"Лихманова Надежда Владимировна"},{"$f":"$O$9","v":"Муниципальное бюджетное общеобразовательное учреждение \"СОШ №27\"  НМР РТ"}]
[10,"Савельева","Виктория ","Вячеславовна",{"$f":"[2]шаблон!$M$608","v":"2010-05-20"},"ж","нет",6,6,23,55,"Участник","нет","Лихманова Надежда Владимировна",{"$f":"$O$9","v":"Муниципальное бюджетное общеобразовательное учреждение \"СОШ №27\"  НМР РТ"}]
[11,"Соловьёв","Рим","Николаевич",{"$f":"[2]шаблон!$M$631","v":"2010-09-14"},"ж","нет",6,6,18,55,"Участник","нет","Лихманова Надежда Владимировна",{"$f":"$O$9","v":"Муниципальное бюджетное общеобразовательное учреждение \"СОШ №27\"  НМР РТ"}]
[12,"Кашапов","Шакир","Табрисович","2010-06-08","м","нет",6,6,17,55,"Участник","нет","Лихманова Надежда Владимировна","Муниципальное бюджетное общеобразовательное учреждение \"СОШ №27\"  НМР РТ"]
[13,"Волков","Кирилл","Сергеевич","2009-03-16","м","нет",7,7,21,50,"Участник","нет","Лихманова Надежда Владимировна","Муниципальное бюджетное общеобразовательное учреждение \"СОШ №27\"  НМР РТ"]
[14,"Ахматгалиев ","Арсен","Ильмирович","2010-01-29","м","нет",7,7,16,50,"Участник","нет","Лихманова Надежда Владимировна","Муниципальное бюджетное общеобразовательное учреждение \"СОШ №27\"  НМР РТ"]
[15,"Степанов","Илья","Андреевич","2009-11-05","м","нет",7,7,24,50,"Участник","нет","Лихманова Надежда Владимировна","Муниципальное бюджетное общеобразовательное учреждение \"СОШ №27\"  НМР РТ"]
[16,"Матвеев","Никита","Михайлович","2009-04-16","м","нет",7,7,31,50,"Призёр","нет","Лихманова Надежда Владимировна","Муниципальное бюджетное общеобразовательное учреждение \"СОШ №27\"  НМР РТ"]
[17,"Ташбулатов","Альберт","Русланович","2009-03-18","м","нет",7,7,20,50,"участник","нет",{"$f":"$N$2","v":"Аглиева Айгуль Магфуровна"},"Муниципальное бюджетное общеобразовательное учреждение \"СОШ №27\"  НМР РТ"]
[18,"Нуреев ","Адель","Ильдарович","2009-06-30","м","нет",7,7,18,50,"участник","нет","Аглиева Айгуль Магфуровна","Муниципальное бюджетное общеобразовательное учреждение \"СОШ №27\"  НМР РТ"]
[19,"Авдошин","Денис","Андреевич","2008-07-22","м","нет",8,8,14,61,"Участник","нет","Лихманова Надежда Владимировна","Муниципальное бюджетное общеобразовательное учреждение \"СОШ №27\"  НМР РТ"]
[20,"Ишманова","Индира","Ильнаровна","2008-08-19","ж","нет",8,8,27,61,"Участник","нет","Лихманова Надежда Владимировна","Муниципальное бюджетное общеобразовательное учреждение \"СОШ №27\"  НМР РТ"]
[21,"Мещанова","Полина","Андреевна","2008-09-25","ж","нет",8,8,36,61,"участник","нет","Лихманова Надежда Владимировна","Муниципальное бюджетное общеобразовательное учреждение \"СОШ №27\"  НМР РТ"]
[22,{"$f":"'[1]Протокол ШЭ ВОШ по предмету'!B21","v":"Уточкин"},{"$f":"'[1]Протокол ШЭ ВОШ по предмету'!C21","v":"Сергей"},{"$f":"'[1]Протокол ШЭ ВОШ по предмету'!D21","v":"Дмитриевич"},{"$f":"'[1]Протокол ШЭ ВОШ по предмету'!E21","v":"2006-11-29"},{"$f":"'[1]Протокол ШЭ ВОШ по предмету'!F21","v":"м"},{"$f":"'[1]Протокол ШЭ ВОШ по предмету'!G21","v":"нет"},{"$f":"'[1]Протокол ШЭ ВОШ по предмету'!H21","v":9},{"$f":"'[1]Протокол ШЭ ВОШ по предмету'!I21","v":9},{"$f":"'[1]Протокол ШЭ ВОШ по предмету'!J21","v":45},{"$f":"'[1]Протокол ШЭ ВОШ по предмету'!K21","v":60},{"$f":"'[1]Протокол ШЭ ВОШ по предмету'!L21","v":"победитель"},{"$f":"'[1]Протокол ШЭ ВОШ по предмету'!M21","v":"нет"},{"$f":"$N$2","v":"Аглиева Айгуль Магфуровна"},{"$f":"$O$2","v":"Муниципальное бюджетное общеобразовательное учреждение \"СОШ №27\"  НМР РТ"}]
[23,{"$f":"'[1]Протокол ШЭ ВОШ по предмету'!B22","v":"Якупов "},{"$f":"'[1]Протокол ШЭ ВОШ по предмету'!C22","v":"Данис"},{"$f":"'[1]Протокол ШЭ ВОШ по предмету'!D22","v":"Вадимович"},{"$f":"'[1]Протокол ШЭ ВОШ по предмету'!E22","v":"2007-09-18"},{"$f":"'[1]Протокол ШЭ ВОШ по предмету'!F22","v":"м"},{"$f":"'[1]Протокол ШЭ ВОШ по предмету'!G22","v":"нет"},{"$f":"'[1]Протокол ШЭ ВОШ по предмету'!H22","v":9},{"$f":"'[1]Протокол ШЭ ВОШ по предмету'!I22","v":9},{"$f":"'[1]Протокол ШЭ ВОШ по предмету'!J22","v":30},{"$f":"'[1]Протокол ШЭ ВОШ по предмету'!K22","v":60},{"$f":"'[1]Протокол ШЭ ВОШ по предмету'!L22","v":"участник"},{"$f":"'[1]Протокол ШЭ ВОШ по предмету'!M22","v":"нет"},"Аглиева Айгуль Магфуровна",{"$f":"$O$2","v":"Муниципальное бюджетное общеобразовательное учреждение \"СОШ №27\"  НМР РТ"}]
[24,{"$f":"'[1]Протокол ШЭ ВОШ по предмету'!B23","v":"Муллин"},{"$f":"'[1]Протокол ШЭ ВОШ по предмету'!C23","v":"Арсений"},{"$f":"'[1]Протокол ШЭ ВОШ по предмету'!D23","v":"Дмитриевич"},{"$f":"'[1]Протокол ШЭ ВОШ по предмету'!E23","v":"2007-09-18"},{"$f":"'[1]Протокол ШЭ ВОШ по предмету'!F23","v":"м"},{"$f":"'[1]Протокол ШЭ ВОШ по предмету'!G23","v":"нет"},{"$f":"'[1]Протокол ШЭ ВОШ по предмету'!H23","v":9},{"$f":"'[1]Протокол ШЭ ВОШ по предмету'!I23","v":9},{"$f":"'[1]Протокол ШЭ ВОШ по предмету'!J23","v":31},{"$f":"'[1]Протокол ШЭ ВОШ по предмету'!K23","v":60},{"$f":"'[1]Протокол ШЭ ВОШ по предмету'!L23","v":"участник"},{"$f":"'[1]Протокол ШЭ ВОШ по предмету'!M23","v":"нет"},"Аглиева Айгуль Магфуровна",{"$f":"$O$2","v":"Муниципальное бюджетное общеобразовательное учреждение \"СОШ №27\"  НМР РТ"}]
[25,{"$f":"'[1]Протокол ШЭ ВОШ по предмету'!B24","v":"Сайдашев"},{"$f":"'[1]Протокол ШЭ ВОШ по предмету'!C24","v":"Артур"},{"$f":"'[1]Протокол ШЭ ВОШ по предмету'!D24","v":"Рустемович"},{"$f":"'[1]Протокол ШЭ ВОШ по предмету'!E24","v":"2007-04-14"},{"$f":"'[1]Протокол ШЭ ВОШ по предмету'!F24","v":"ж"},{"$f":"'[1]Протокол ШЭ ВОШ по предмету'!G24","v":"нет"},{"$f":"'[1]Протокол ШЭ ВОШ по предмету'!H24","v":9},{"$f":"'[1]Протокол ШЭ ВОШ по предмету'!I24","v":9},{"$f":"'[1]Протокол ШЭ ВОШ по предмету'!J24","v":29},{"$f":"'[1]Протокол ШЭ ВОШ по предмету'!K24","v":60},{"$f":"'[1]Протокол ШЭ ВОШ по предмету'!L24","v":"призер"},{"$f":"'[1]Протокол ШЭ ВОШ по предмету'!M24","v":"нет"},"Аглиева Айгуль Магфуровна",{"$f":"$O$2","v":"Муниципальное бюджетное общеобразовательное учреждение \"СОШ №27\"  НМР РТ"}]
[26,{"$f":"'[1]Протокол ШЭ ВОШ по предмету'!B25","v":"Колесникова"},{"$f":"'[1]Протокол ШЭ ВОШ по предмету'!C25","v":"Ангелина"},{"$f":"'[1]Протокол ШЭ ВОШ по предмету'!D25","v":"Валерьевна"},{"$f":"'[1]Протокол ШЭ ВОШ по предмету'!E25","v":"2007-07-11"},{"$f":"'[1]Протокол ШЭ ВОШ по предмету'!F25","v":"ж"},{"$f":"'[1]Протокол ШЭ ВОШ по предмету'!G25","v":"нет"},{"$f":"'[1]Протокол ШЭ ВОШ по предмету'!H25","v":9},{"$f":"'[1]Протокол ШЭ ВОШ по предмету'!I25","v":9},{"$f":"'[1]Протокол ШЭ ВОШ по предмету'!J25","v":37},{"$f":"'[1]Протокол ШЭ ВОШ по предмету'!K25","v":60},{"$f":"'[1]Протокол ШЭ ВОШ по предмету'!L25","v":"участник"},{"$f":"'[1]Протокол ШЭ ВОШ по предмету'!M25","v":"нет"},"Аглиева Айгуль Магфуровна",{"$f":"$O$2","v":"Муниципальное бюджетное общеобразовательное учреждение \"СОШ №27\"  НМР РТ"}]
[27,{"$f":"'[1]Протокол ШЭ ВОШ по предмету'!B26","v":"Яшманов"},{"$f":"'[1]Протокол ШЭ ВОШ по предмету'!C26","v":"Евгений"},{"$f":"'[1]Протокол ШЭ ВОШ по предмету'!D26","v":"Алексеевич"},{"$f":"'[1]Протокол ШЭ ВОШ по предмету'!E26","v":"2007-08-21"},{"$f":"'[1]Протокол ШЭ ВОШ по предмету'!F26","v":"м"},{"$f":"'[1]Протокол ШЭ ВОШ по предмету'!G26","v":"нет"},{"$f":"'[1]Протокол ШЭ ВОШ по предмету'!H26","v":9},{"$f":"'[1]Протокол ШЭ ВОШ по предмету'!I26","v":9},{"$f":"'[1]Протокол ШЭ ВОШ по предмету'!J26","v":27},{"$f":"'[1]Протокол ШЭ ВОШ по предмету'!K26","v":60},{"$f":"'[1]Протокол ШЭ ВОШ по предмету'!L26","v":"участник"},{"$f":"'[1]Протокол ШЭ ВОШ по предмету'!M26","v":"нет"},"Аглиева Айгуль Магфуровна",{"$f":"$O$2","v":"Муниципальное бюджетное общеобразовательное учреждение \"СОШ №27\"  НМР РТ"}]
[28,{"$f":"'[1]Протокол ШЭ ВОШ по предмету'!B27","v":"Колчерина"},{"$f":"'[1]Протокол ШЭ ВОШ по предмету'!C27","v":"Юлия"},{"$f":"'[1]Протокол ШЭ ВОШ по предмету'!D27","v":"Александровна"},{"$f":"'[1]Протокол ШЭ ВОШ по предмету'!E27","v":"2008-07-22"},{"$f":"'[1]Протокол ШЭ ВОШ по предмету'!F27","v":"ж"},{"$f":"'[1]Протокол ШЭ ВОШ по предмету'!G27","v":"нет"},{"$f":"'[1]Протокол ШЭ ВОШ по предмету'!H27","v":9},{"$f":"'[1]Протокол ШЭ ВОШ по предмету'!I27","v":9},{"$f":"'[1]Протокол ШЭ ВОШ по предмету'!J27","v":30},{"$f":"'[1]Протокол ШЭ ВОШ по предмету'!K27","v":60},{"$f":"'[1]Протокол ШЭ ВОШ по предмету'!L27","v":"участник"},{"$f":"'[1]Протокол ШЭ ВОШ по предмету'!M27","v":"нет"},"Аглиева Айгуль Магфуровна",{"$f":"$O$2","v":"Муниципальное бюджетное общеобразовательное учреждение \"СОШ №27\"  НМР РТ"}]
[29,{"$f":"'[1]Протокол ШЭ ВОШ по предмету'!B28","v":"Пятибратова"},{"$f":"'[1]Протокол ШЭ ВОШ по предмету'!C28","v":"Илона"},{"$f":"'[1]Протокол ШЭ ВОШ по предмету'!D28","v":"Романовна"},{"$f":"'[1]Протокол ШЭ ВОШ по предмету'!E28","v":"2006-11-12"},{"$f":"'[1]Протокол ШЭ ВОШ по предмету'!F28","v":"ж"},{"$f":"'[1]Протокол ШЭ ВОШ по предмету'!G28","v":"нет"},{"$f":"'[1]Протокол ШЭ ВОШ по предмету'!H28","v":9},{"$f":"'[1]Протокол ШЭ ВОШ по предмету'!I28","v":9},{"$f":"'[1]Протокол ШЭ ВОШ по предмету'!J28","v":32},{"$f":"'[1]Протокол ШЭ ВОШ по предмету'!K28","v":60},{"$f":"'[1]Протокол ШЭ ВОШ по предмету'!L28","v":"участник"},{"$f":"'[1]Протокол ШЭ ВОШ по предмету'!M28","v":"нет"},"Аглиева Айгуль Магфуровна",{"$f":"$O$2","v":"Муниципальное бюджетное общеобразовательное учреждение \"СОШ №27\"  НМР РТ"}]
[30,{"$f":"'[1]Протокол ШЭ ВОШ по предмету'!B29","v":"Шамсутдинова"},{"$f":"'[1]Протокол ШЭ ВОШ по предмету'!C29","v":"Арина"},{"$f":"'[1]Протокол ШЭ ВОШ по предмету'!D29","v":"Ринатовна"},{"$f":"'[1]Протокол ШЭ ВОШ по предмету'!E29","v":"2006-12-21"},{"$f":"'[1]Протокол ШЭ ВОШ по предмету'!F29","v":"ж"},{"$f":"'[1]Протокол ШЭ ВОШ по предмету'!G29","v":"нет"},{"$f":"'[1]Протокол ШЭ ВОШ по предмету'!H29","v":9},{"$f":"'[1]Протокол ШЭ ВОШ по предмету'!I29","v":9},{"$f":"'[1]Протокол ШЭ ВОШ по предмету'!J29","v":27},{"$f":"'[1]Протокол ШЭ ВОШ по предмету'!K29","v":60},{"$f":"'[1]Протокол ШЭ ВОШ по предмету'!L29","v":"участник"},{"$f":"'[1]Протокол ШЭ ВОШ по предмету'!M29","v":"нет"},"Аглиева Айгуль Магфуровна",{"$f":"$O$2","v":"Муниципальное бюджетное общеобразовательное учреждение \"СОШ №27\"  НМР РТ"}]
[31,{"$f":"'[1]Протокол ШЭ ВОШ по предмету'!B30","v":"Оконечникова "},{"$f":"'[1]Протокол ШЭ ВОШ по предмету'!C30","v":"Ангелина"},{"$f":"'[1]Протокол ШЭ ВОШ по предмету'!D30","v":"Антоновна"},{"$f":"'[1]Протокол ШЭ ВОШ по предмету'!E30","v":"2006-12-02"},{"$f":"'[1]Протокол ШЭ ВОШ по предмету'!F30","v":"ж"},{"$f":"'[1]Протокол ШЭ ВОШ по предмету'!G30","v":"нет"},{"$f":"'[1]Протокол ШЭ ВОШ по предмету'!H30","v":9},{"$f":"'[1]Протокол ШЭ ВОШ по предмету'!I30","v":9},{"$f":"'[1]Протокол ШЭ ВОШ по предмету'!J30","v":24},{"$f":"'[1]Протокол ШЭ ВОШ по предмету'!K30","v":60},{"$f":"'[1]Протокол ШЭ ВОШ по предмету'!L30","v":"участник"},{"$f":"'[1]Протокол ШЭ ВОШ по предмету'!M30","v":"нет"},"Аглиева Айгуль Магфуровна",{"$f":"$O$2","v":"Муниципальное бюджетное общеобразовательное учреждение \"СОШ №27\"  НМР РТ"}]
[32,"Гаврилов","Роман","Павлович","2006-01-25","м","нет",10,10,26,65,"Участник","нет","Лихманова Надежда Владимировна","Муниципальное бюджетное общеобразовательное учреждение \"СОШ №27\"  НМР РТ"]